bitfinex-derivatives/quotes_BNBF0:USTF0_20250904
["timestamp","ask_amount","ask_price","bid_price","bid_amount"]
[1756995720356,0.71774906,846.45,845.6,0.79475242]
[1756995721062,0.71774906,846.45,845.61,0.79475242]
[1756995721361,0.78973665,846.45,845.72,0.79475242]
[1756995721562,0.71774906,846.44,845.7,0.79475242]
[1756995721860,0.78973665,846.44,845.69,0.79475242]
[1756995722061,0.71774906,846.43,845.68,0.79475242]
[1756995723763,1.50748571,846.43,845.69,0.79475242]
[1756995723963,0.71774906,846.42,845.69,0.79475242]
[1756995725663,1.50748571,846.42,845.7,0.79475242]
[1756995725859,0.71774906,846.41,845.71,0.79475242]
[1756995726060,0.71774906,846.42,845.71,0.79475242]
[1756995727364,0.71774906,846.42,845.72,0.79475242]
[1756995727564,0.71774906,846.43,845.83,0.79475242]
[1756995727765,0.71774906,846.52,845.83,0.79475242]
[1756995728163,0.71774906,846.52,845.85,0.79475242]
[1756995728362,0.71774906,846.53,845.85,0.79475242]
[1756995728561,0.71774906,846.54,845.85,0.79475242]
[1756995729366,0.71774906,846.54,845.84,0.79475242]
[1756995729967,0.71774906,846.54,845.85,0.79475242]
[1756995730169,0.71774906,846.54,845.84,0.79475242]
[1756995730666,0.71774906,846.55,845.84,0.79475242]
[1756995731165,1.50748571,846.55,845.83,0.79475242]
[1756995731368,0.71774906,846.54,845.82,0.79475242]
[1756995731566,0.71774906,846.55,845.82,0.79475242]
[1756995732669,0.71774906,846.56,845.82,0.79475242]
[1756995732969,1.50748571,846.56,845.82,0.79475242]
[1756995733166,0.71774906,846.55,845.82,0.79475242]
[1756995734469,0.71774906,846.56,845.82,0.79475242]
[1756995735169,0.71774906,846.56,845.81,0.79475242]
[1756995737773,1.50748571,846.47,845.71,0.79475242]
[1756995737971,0.71774906,846.46,845.71,0.79475242]
[1756995738369,0.71774906,846.46,845.72,0.79475242]
[1756995738568,1.50748571,846.46,845.7,0.79475242]
[1756995738773,0.71774906,846.45,845.7,0.79475242]
[1756995738974,1.50748571,846.45,845.69,0.79475242]
[1756995739273,0.71774906,846.44,845.69,0.79475242]
[1756995740071,0.71774906,846.44,845.68,0.79475242]
[1756995740270,0.78973665,846.44,845.65,0.79475242]
[1756995740474,1.50748571,846.43,845.66,0.79475242]
[1756995740672,1.50748571,846.42,845.65,0.79475242]
[1756995740871,0.71774906,846.41,845.65,0.79475242]
[1756995742076,0.78973665,846.4,845.63,0.79475242]
[1756995742277,0.71774906,846.39,845.63,0.79475242]
[1756995743376,1.50748571,846.39,845.63,0.79475242]
[1756995743577,0.71774906,846.38,845.63,0.79475242]
[1756995747575,0.71774906,846.38,844.81,0.20562029]
[1756995747576,0.71774906,846.38,845.64,0.79475242]
[1756995747779,0.71774906,846.38,844.81,0.20562029]
[1756995747780,1.50748571,846.39,845.65,0.79475242]
[1756995747981,0.71774906,846.38,845.65,0.79475242]
[1756995749878,1.50748571,846.38,845.65,0.79475242]
[1756995750077,1.79050948,846.71,845.67,0.79475242]
[1756995750078,1.50748571,846.37,845.67,0.79475242]
[1756995750276,1.50748571,846.36,845.67,0.79475242]
[1756995750475,0.71774906,846.35,845.67,0.79475242]
[1756995752984,1.50748571,846.35,845.66,0.79475242]
[1756995753185,1.50748571,846.34,845.66,0.79475242]
[1756995753485,0.71774906,846.33,845.66,0.79475242]
[1756995754685,1.50748571,846.33,845.66,0.79475242]
[1756995754982,0.71774906,846.32,845.66,0.79475242]
[1756995756588,1.50748571,846.32,845.67,0.79475242]
[1756995756793,0.71774906,846.31,845.67,0.79475242]
[1756995757093,0.71774906,846.31,845.66,0.79475242]
[1756995757295,0.71774906,846.32,845.66,0.79475242]
[1756995758294,0.71790795,846.32,845.66,0.79475242]
[1756995758589,1.5076446,846.32,845.67,0.79475242]
[1756995758794,0.71790795,846.31,845.67,0.79475242]
[1756995758990,0.71792168,846.31,845.67,0.79475242]
[1756995759190,0.71792168,846.31,845.66,0.79475242]
[1756995759489,0.71792168,846.32,845.66,0.79475242]
[1756995759893,1.50765833,846.32,845.67,0.79475242]
[1756995760191,0.71792168,846.31,845.67,0.79475242]
[1756995760391,1.50765833,846.31,845.67,0.79475242]
[1756995760596,0.71792168,846.3,845.67,0.79475242]
[1756995760994,0.71792168,846.31,845.67,0.79475242]
[1756995761693,1.50765833,846.31,845.68,0.79475242]
[1756995761897,0.71792168,846.3,845.68,0.79581037]
[1756995763294,0.71792168,846.3,845.67,0.79581037]
[1756995763598,0.71792168,846.3,845.61,0.79581037]
[1756995763798,0.71792168,846.4,845.61,0.79581037]
[1756995764499,0.71792168,846.41,845.62,0.79581037]
[1756995766197,1.50891743,846.41,845.61,0.79581037]
[1756995766398,0.71792168,846.4,845.61,0.79581037]
[1756995766800,0.79099575,846.41,845.61,0.79581037]
[1756995767301,0.71783829,846.4,845.61,0.79581037]
[1756995767600,0.79099575,846.41,845.61,0.79581037]
[1756995767798,0.71783855,846.4,845.6,0.79581037]
[1756995768001,0.79099575,846.31,845.59,0.79581037]
[1756995768503,0.79099575,846.32,845.59,0.79581037]
[1756995768901,0.79099575,846.31,845.59,0.79581037]
[1756995769202,0.71777913,846.3,845.59,0.79581037]
[1756995769502,0.79099575,846.29,845.61,0.79581037]
[1756995770399,0.71776983,846.28,845.61,0.79581037]
[1756995771300,0.71776983,846.3,845.6,0.79581037]
[1756995771600,0.71776983,846.3,845.59,0.79581037]
[1756995771900,0.71776983,846.3,845.56,0.79581037]
[1756995772103,0.71776983,846.35,845.56,0.79581037]
[1756995772302,0.79099575,846.34,845.54,0.79581037]
[1756995772501,0.71776983,846.33,845.53,0.79581037]
[1756995773501,0.20566707,846.15,845.53,0.79581037]
[1756995774904,0.71776983,846.33,845.54,0.79581037]
[1756995775204,0.20565613,846.24,845.54,0.79581037]
[1756995777403,0.92342596,846.24,845.54,0.79581037]
[1756995777602,0.71776983,846.23,845.54,0.79581037]
[1756995777804,0.20565613,846.24,845.54,0.79581037]
[1756995779908,0.92342596,846.24,845.54,0.79581037]
[1756995780110,0.71776983,846.23,845.54,0.79581037]
[1756995780910,0.71776983,846.23,845.55,0.79581037]
[1756995781214,0.20565613,846.24,845.69,0.79581037]
[1756995781414,0.20565613,846.24,845.7,0.79581037]
[1756995782215,0.71784443,846.42,845.7,0.79581037]
[1756995782516,0.20562333,846.38,845.7,0.79581037]
[1756995786413,0.92346776,846.38,845.7,0.79581037]
[1756995786613,0.71784443,846.37,845.7,0.79581037]
[1756995786817,0.20562333,846.38,845.7,0.79581037]
[1756995788015,0.20562333,846.38,845.7,0.79541637]
[1756995788213,0.20562333,846.38,845.71,0.79541637]
[1756995789813,0.20562333,846.38,845.7,0.79541637]
[1756995790215,0.92346776,846.38,845.71,0.79541637]
[1756995790418,0.71784443,846.37,845.71,0.79541637]
[1756995790718,0.20562333,846.38,845.67,0.79541637]
[1756995791318,0.20562333,846.38,845.68,0.79541637]
[1756995792218,0.20562333,846.38,845.69,0.79541637]
[1756995792718,0.20562333,846.38,845.74,0.79541637]
[1756995793815,0.71861975,846.47,845.74,0.79541637]
[1756995794118,0.20560267,846.5,845.74,0.79541637]
[1756995795219,0.20560267,846.5,845.75,0.79541637]
[1756995797719,0.20560267,846.5,845.77,0.79541637]
[1756995797918,0.20560267,846.5,845.78,0.79541637]
[1756995800025,0.20560267,846.5,845.77,0.79541637]
[1756995801128,0.20560267,846.5,845.78,0.79541637]
[1756995802023,0.92422242,846.5,845.78,0.79541637]
[1756995802227,0.71861975,846.49,845.78,0.79541637]
[1756995802423,0.20560267,846.5,845.78,0.79541637]
[1756995803426,0.20560267,846.5,845.77,0.79532609]
[1756995804625,0.79067504,846.6,845.77,0.79532609]
[1756995804830,0.20557838,846.67,845.91,0.79532609]
[1756995805327,0.20557838,846.67,845.89,0.79532609]
[1756995805930,0.20557838,846.67,845.94,0.79532609]
[1756995806230,0.20557838,846.67,845.92,0.79532609]
[1756995807331,0.20557838,846.67,845.9,0.79532609]
[1756995807730,0.20557838,846.67,845.91,0.79532609]
[1756995808233,0.20557838,846.67,845.9,0.79532609]
[1756995808434,0.20557838,846.67,845.89,0.79532609]
[1756995809330,0.20557838,846.67,845.88,0.79532609]
[1756995810334,0.20557838,846.67,845.87,0.79532609]
[1756995810538,0.20557838,846.67,845.89,0.79532609]
[1756995811238,0.20557838,846.67,845.88,0.79532609]
[1756995811738,0.20557838,846.67,845.87,0.79532609]
[1756995811940,0.20557838,846.67,845.88,0.79532609]
[1756995812440,0.20557838,846.67,845.89,0.79532609]
[1756995813142,0.20557838,846.67,845.9,0.79532609]
[1756995813338,0.20557838,846.67,845.89,0.79532609]
[1756995813641,0.20557838,846.67,845.88,0.79532609]
[1756995813840,0.20557838,846.67,845.87,0.79532609]
[1756995814337,0.20557838,846.67,845.86,0.79532609]
[1756995815539,0.20557838,846.67,845.85,0.79532609]
[1756995816243,0.20557838,846.67,845.86,0.79532609]
[1756995816541,0.20557838,846.67,845.87,0.79532609]
[1756995816744,0.20557838,846.67,845.88,0.79532609]
[1756995816944,0.71638506,847.0,845.88,0.79532609]
[1756995817248,0.20552921,846.77,845.87,0.79532609]
[1756995817848,0.71638506,847.0,845.91,0.79532609]
[1756995818048,0.20552314,846.83,845.89,0.79532609]
[1756995818248,0.20552314,846.83,845.88,0.79532609]
[1756995819349,0.20552314,846.83,845.89,0.79532609]
[1756995819649,0.20552314,846.83,845.9,0.79532609]
[1756995820846,0.20552314,846.83,845.89,0.79532609]
[1756995821349,0.20552314,846.83,845.88,0.79532609]
[1756995822048,0.20552314,846.83,845.9,0.79532609]
[1756995822252,0.71589458,847.07,845.89,0.79532609]
[1756995822549,0.20549644,847.01,845.96,0.79532609]
[1756995822950,0.20549644,847.01,846.05,0.79532609]
[1756995823349,0.20549644,847.01,846.03,0.79532609]
[1756995824245,0.20549644,847.01,846.02,0.79532609]
[1756995824550,0.20549644,847.01,846.05,0.79532609]
[1756995825248,0.71562091,847.21,846.02,0.79532609]
[1756995825453,0.2054655,847.11,846.09,0.79532609]
[1756995825752,0.2054655,847.11,846.2,0.79532609]
[1756995826248,0.2054655,847.11,846.18,0.79532609]
[1756995826953,0.2054655,847.11,846.22,0.79532609]
[1756995827148,0.2054655,847.11,846.2,0.79532609]
[1756995827450,0.2054655,847.11,846.21,0.79532609]
[1756995828150,0.2054655,847.11,846.18,0.79532609]
[1756995828355,0.2054655,847.11,846.17,0.79532609]
[1756995828549,0.2054655,847.11,846.18,0.79532609]
[1756995828751,0.2054655,847.11,846.2,0.79532609]
[1756995829055,0.2054655,847.11,846.21,0.79532609]
[1756995829257,0.2054655,847.11,846.06,1.0573071]
[1756995829258,0.2054655,847.11,846.19,0.79532609]
[1756995829456,0.2054655,847.11,846.18,0.79532609]
[1756995829653,0.2054655,847.11,846.17,0.79532609]
[1756995829857,0.2054655,847.11,846.15,0.79532609]
[1756995830057,0.2054655,847.11,846.13,0.79532609]
[1756995830258,0.2054655,847.11,846.12,0.79532609]
[1756995830459,0.2054655,847.11,846.11,0.79532609]
[1756995831253,0.2054655,847.11,846.1,0.79532609]
[1756995833155,0.2054655,847.11,846.09,0.79532609]
[1756995833361,0.2054655,847.11,846.08,0.79532609]
[1756995835257,0.2054655,847.11,846.07,0.79532609]
[1756995837965,0.2054655,847.11,845.89,1.0573071]
[1756995837966,0.2054655,847.11,846.08,0.79532609]
[1756995838164,0.2054655,847.11,846.07,0.79532609]
[1756995838360,0.2054655,847.11,846.08,0.79532609]
[1756995840363,0.71387911,847.39,846.09,0.79532609]
[1756995840563,0.20544306,847.18,846.15,0.79532609]
[1756995840766,0.20544306,847.18,846.16,0.79532609]
[1756995841166,0.20544306,847.18,846.15,0.79532609]
[1756995842164,0.20544306,847.18,846.14,0.79532609]
[1756995843269,0.20544306,847.18,846.13,0.79532609]
[1756995843466,0.20544306,847.18,846.16,0.79532609]
[1756995844267,0.20544306,847.18,846.17,0.79532609]
[1756995844665,0.20544306,847.18,846.15,0.79532609]
[1756995847266,0.20544306,847.18,846.14,0.79532609]
[1756995849266,0.20544306,847.18,846.15,0.79532609]
[1756995850369,0.20544306,847.18,846.16,0.79532609]
[1756995852471,0.20544306,847.18,846.15,0.79532609]
[1756995853074,0.20544306,847.18,846.18,0.79532609]
[1756995853271,0.20544306,847.18,846.15,0.79532609]
[1756995853672,0.20544306,847.18,846.14,0.79532609]
[1756995853873,0.20544306,847.18,846.11,0.79532609]
[1756995854372,0.20544306,847.18,846.12,0.79532609]
[1756995854976,0.20544306,847.18,846.15,0.79532609]
[1756995855373,0.20544306,847.18,846.16,0.79532609]
[1756995856275,0.20544306,847.18,846.17,0.79532609]
[1756995856879,0.20544306,847.18,846.13,0.79532609]
[1756995857179,0.20544306,847.18,846.14,0.79532609]
[1756995858377,0.20544306,847.18,846.15,0.79532609]
[1756995859177,0.20544306,847.18,846.17,0.79532609]
[1756995860282,0.20544306,847.18,846.18,0.79532609]
[1756995860783,0.92085403,847.18,846.18,0.79532609]
[1756995861079,0.20544306,847.18,846.18,0.79532609]
[1756995861382,0.20544306,847.18,846.2,0.79532609]
[1756995861981,0.20544306,847.18,846.14,0.79532609]
[1756995862182,0.20544306,847.18,846.13,0.79532609]
[1756995862381,0.20544306,847.18,846.14,0.79532609]
[1756995863079,0.20544306,847.18,846.13,0.79532609]
[1756995863278,0.20544306,847.18,846.15,0.79532609]
[1756995864079,0.20544306,847.18,846.14,0.79532609]
[1756995864379,0.20544306,847.18,846.17,0.79532609]
[1756995864583,0.20544306,847.18,846.14,0.79532609]
[1756995865080,0.20544306,847.18,846.15,0.79532609]
[1756995865284,0.79067504,847.17,846.17,0.79532609]
[1756995865585,0.71692994,847.16,846.16,0.79532609]
[1756995865880,0.71692994,847.17,846.16,0.79532609]
[1756995866185,0.71813725,847.17,846.17,0.79532609]
[1756995867081,1.50881229,847.17,846.1,0.79532609]
[1756995867284,1.50881229,847.16,846.1,0.79532609]
[1756995867484,0.71813725,847.15,846.1,0.79532609]
[1756995867980,0.71813725,847.16,846.1,0.79532609]
[1756995868383,1.50881229,847.16,846.11,0.79532609]
[1756995868584,0.71813725,847.15,846.11,0.79532609]
[1756995869285,0.71813725,847.15,846.12,0.79532609]
[1756995870183,1.50881229,847.15,846.12,0.79532609]
[1756995870384,0.71813725,847.14,846.12,0.79532609]
[1756995870784,0.71813725,847.15,846.12,0.79532609]
[1756995871384,0.71813725,847.15,846.14,0.79532609]
[1756995871584,0.71813725,847.16,846.14,0.79532609]
[1756995871785,0.71863085,847.17,846.14,0.79532609]
[1756995872185,1.50930589,847.17,846.14,0.79532609]
[1756995872385,0.71863085,847.16,846.15,0.79532609]
[1756995872589,0.71863085,847.16,846.16,0.79532609]
[1756995872785,0.71863085,847.17,846.16,0.79532609]
[1756995872986,0.79067504,847.15,846.18,0.79532609]
[1756995873289,0.71863085,847.14,846.19,0.79532609]
[1756995873685,0.79067504,847.13,846.2,0.79532609]
[1756995873885,0.71863085,847.12,846.22,0.79532609]
[1756995874091,0.71863085,847.12,846.25,0.79532609]
[1756995874292,1.50930589,847.15,846.26,0.79532609]
[1756995874495,0.71863085,847.14,846.26,0.79532609]
[1756995875291,1.50930589,847.14,846.27,0.79532609]
[1756995875593,0.71863085,847.13,846.27,0.79532609]
[1756995876298,1.50930589,847.13,846.28,0.79532609]
[1756995876598,0.71863085,847.12,846.28,0.79532609]
[1756995877299,1.50930589,847.12,846.29,0.79532609]
[1756995877499,0.71863085,847.11,846.29,0.79532609]
[1756995878200,0.71863085,847.11,846.3,0.79532609]
[1756995879197,1.50930589,847.11,846.31,0.79532609]
[1756995879497,0.71863085,847.1,846.31,0.79532609]
[1756995879998,0.71811291,847.1,846.31,0.79532609]
[1756995880197,1.50878795,847.1,846.31,0.79532609]
[1756995880402,0.71811291,847.09,846.32,0.79532609]
[1756995881002,0.71811291,847.09,846.3,0.79532609]
[1756995881205,0.71811291,847.11,846.3,0.79532609]
[1756995881403,1.50907434,847.11,846.31,0.79532609]
[1756995881605,0.7183993,847.1,846.31,0.79532609]
[1756995882106,1.50907434,847.1,846.3,0.79532609]
[1756995882301,1.50907434,847.09,846.3,0.79532609]
[1756995882504,0.7183993,847.08,846.31,0.79532609]
[1756995883205,1.50907434,847.08,846.31,0.79532609]
[1756995883404,0.7183993,847.07,846.31,0.79532609]
[1756995886009,0.7183993,847.07,846.33,0.79532609]
[1756995886209,0.7183993,847.08,846.33,0.79532609]
[1756995887010,0.71865155,847.08,846.32,0.79532609]
[1756995887208,0.71865155,847.08,846.33,0.79532609]
[1756995888005,1.50932659,847.08,846.33,0.79532609]
[1756995888208,0.71865155,847.07,846.33,0.79532609]
[1756995890106,0.7188909,847.08,846.33,0.79532609]
[1756995891009,0.79067504,847.06,846.35,0.79532609]
[1756995891209,0.7188909,847.05,846.35,0.79532609]
[1756995891504,0.7188909,847.05,846.34,0.79532609]
[1756995891704,0.7188909,847.06,846.34,0.79532609]
[1756995892109,0.7188909,847.06,846.36,0.79532609]
[1756995892306,0.7188909,847.09,846.36,0.79532609]
[1756995892807,0.79067504,847.1,846.36,0.79532609]
[1756995893008,0.71891872,847.09,846.37,0.79532609]
[1756995893410,0.79067504,847.1,846.37,0.79532609]
[1756995894013,0.71891284,847.09,846.37,0.79532609]
[1756995896718,0.71890711,847.09,846.37,0.79532609]
[1756995898116,0.71890711,847.09,846.39,0.79532609]
[1756995898315,0.71890711,847.1,846.39,0.79532609]
[1756995898921,0.71890711,847.1,846.4,0.79532609]
[1756995899115,1.50958215,847.12,846.41,0.79532609]
[1756995899314,0.71890711,847.11,846.41,0.79532609]
[1756995899518,0.71890711,847.12,846.41,0.79532609]
[1756995899718,0.71890711,847.12,846.4,0.79532609]
[1756995900315,0.71890711,847.12,846.35,0.79532609]
[1756995900518,0.71890711,847.17,846.35,0.79532609]
[1756995900722,0.20544306,847.18,846.35,0.79532609]
[1756995901021,0.20544306,847.18,846.36,0.79532609]
[1756995901217,0.20544306,847.18,846.37,0.79532609]
[1756995901424,0.20544306,847.18,845.14,2.6432678]
[1756995901425,0.20544306,847.18,846.38,0.79532609]
[1756995901717,0.20544306,847.18,845.97,1.5859607]
[1756995901718,0.20544306,847.18,846.39,0.79532609]
[1756995902017,0.92435017,847.18,846.39,0.79532609]
[1756995902321,0.71890711,847.17,846.39,0.79532609]
[1756995902521,0.20544306,847.18,846.4,0.79532609]
[1756995903418,0.92435017,847.18,846.4,0.79532609]
[1756995903616,0.71890711,847.17,846.4,0.79532609]
[1756995904018,0.20544306,847.18,846.4,0.79532609]
[1756995905123,0.92435017,847.18,846.4,0.79532609]
[1756995905323,0.71890711,847.17,846.4,0.79532609]
[1756995905518,0.20544306,847.18,846.4,0.79532609]
[1756995907025,0.79067504,847.15,846.46,0.79532609]
[1756995907321,1.50958215,847.14,846.46,0.79532609]
[1756995907521,0.71890711,847.13,846.46,0.79532609]
[1756995909125,0.71890711,847.13,846.47,0.79532609]
[1756995910227,1.50958215,847.13,846.47,0.79532609]
[1756995910424,0.71890711,847.12,846.47,0.79532609]
[1756995911323,0.71890711,847.12,846.31,1.0573071]
[1756995911324,0.71890711,847.12,846.48,0.79532609]
[1756995911624,1.50958215,847.12,846.48,0.79532609]
[1756995911823,0.71890711,847.11,846.48,0.79532609]
[1756995913325,0.71890711,847.11,845.18,3.700575]
[1756995913326,0.79067504,847.09,846.5,0.79532609]
[1756995913529,0.71890711,847.08,846.5,0.79532609]
[1756995913728,0.71890711,847.08,846.49,0.79532609]
[1756995913930,0.71890711,847.09,846.49,0.79532609]
[1756995915831,0.71890711,847.09,846.34,1.0573071]
[1756995916028,0.79318328,847.1,846.49,0.79549576]
[1756995916230,0.71890711,847.09,846.5,0.79549576]
[1756995916528,1.51209039,847.09,846.5,0.79549576]
[1756995916831,0.71890711,847.08,846.5,0.79549576]
[1756995917431,1.51209039,847.08,846.51,0.79549576]
[1756995917630,0.71890711,847.07,846.51,0.79549576]
[1756995918833,0.71890711,847.09,846.51,0.79549576]
[1756995920828,0.71890711,847.09,846.52,0.79549576]
[1756995921033,0.71890711,847.1,846.52,0.79549576]
[1756995921333,0.71890711,847.1,846.51,0.79549576]
[1756995922229,1.51209039,847.1,846.52,0.79549576]
[1756995922434,0.71890711,847.09,846.51,0.79549576]
[1756995922632,0.71890711,847.1,846.51,0.79549576]
[1756995923535,0.71890711,847.1,846.52,0.79549576]
[1756995923736,1.51209039,847.1,846.52,0.79549576]
[1756995924035,1.51209039,847.09,846.51,0.79549576]
[1756995924332,0.71890711,847.08,846.51,0.79549576]
[1756995927843,0.71890711,847.08,846.52,0.79549576]
[1756995928141,1.51209039,847.15,846.51,0.79549576]
[1756995928440,1.51209039,847.15,846.35,1.0573071]
[1756995928441,0.71890711,847.14,846.52,0.79549576]
[1756995929541,0.71890711,847.15,846.52,0.79549576]
[1756995931038,0.71890711,847.15,846.36,1.0573071]
[1756995931238,0.79278268,847.15,846.52,0.7954879]
[1756995931441,0.71890711,847.14,846.52,0.7954879]
[1756995931840,1.51168979,847.15,846.52,0.7954879]
[1756995932044,0.71890711,847.14,846.52,0.7954879]
[1756995932344,0.71890711,847.14,846.53,0.7954879]
[1756995932546,0.71890711,847.14,846.54,0.7954879]
[1756995932741,0.71890711,847.15,846.54,0.7954879]
[1756995933540,0.71890711,847.17,846.59,0.7954879]
[1756995934842,0.71890711,847.17,846.6,0.7954879]
[1756995935145,0.20544306,847.18,846.6,0.7954879]
[1756995935342,0.20544306,847.18,846.58,0.7954879]
[1756995935748,0.92435017,847.18,846.58,0.7954879]
[1756995936047,0.71890711,847.17,846.58,0.7954879]
[1756995936446,0.20544306,847.18,846.63,0.7954879]
[1756995936847,0.72138648,847.3,846.65,0.7954879]
[1756995937145,0.20540183,847.3,846.65,0.7954879]
[1756995937349,0.20540183,847.3,845.6,2.6432678]
[1756995937350,0.20540183,847.3,846.64,0.7954879]
[1756995937644,0.20540183,847.3,846.65,0.7954879]
[1756995938250,0.72138648,847.31,846.64,0.7954879]
[1756995938550,0.20538547,847.42,846.67,0.7954879]
[1756995939049,0.20538547,847.42,846.68,0.7954879]
[1756995939249,0.20538547,847.42,846.67,0.7954879]
[1756995939647,0.20538547,847.42,846.47,1.0573071]
[1756995939648,0.92647694,847.42,846.63,0.7954879]
[1756995939849,0.72109147,847.41,846.63,0.7954879]
[1756995941346,0.20538547,847.42,846.62,0.7954879]
[1756995942355,0.92647694,847.42,846.61,0.7954879]
[1756995942555,0.72109147,847.41,846.61,0.7954879]
[1756995942952,0.72109147,847.41,846.6,0.7954879]
[1756995944054,0.20538547,847.42,846.6,0.7954879]
[1756995944355,0.20538547,847.42,846.59,0.7954879]
[1756995945160,0.20538547,847.42,846.51,0.7954879]
[1756995946759,0.20538547,847.42,846.53,0.7954879]
[1756995948457,0.20538547,847.42,846.55,0.7954879]
[1756995948659,0.20538547,847.42,846.58,0.7954879]
[1756995948857,0.20538547,847.42,846.59,0.7954879]
[1756995949361,0.20538547,847.42,846.57,0.7954879]
[1756995951158,0.20538547,847.42,846.56,0.7954879]
[1756995952458,0.20538547,847.42,846.65,0.7954879]
[1756995954263,0.20538547,847.42,846.64,0.7954879]
[1756995954963,0.20538547,847.42,846.65,0.7954879]
[1756995955364,0.20538547,847.42,846.66,0.7954879]
[1756995955666,0.20538547,847.42,846.67,0.7954879]
[1756995957464,0.20538547,847.42,846.65,0.7954879]
[1756995959064,0.72028151,847.62,846.69,0.7954879]
[1756995959262,0.20535093,847.55,846.68,0.7954879]
[1756995959461,0.20535093,847.55,846.69,0.7954879]
[1756995960161,0.20535093,847.55,846.7,0.7954879]
[1756995960466,0.20535093,847.55,846.69,0.7954879]
[1756995960663,0.20535093,847.55,846.73,0.7954879]
[1756995960867,0.20535093,847.55,846.74,0.7954879]
[1756995961066,0.20535093,847.55,846.73,0.7954879]
[1756995962168,0.20535093,847.55,846.72,0.7954879]
[1756995963265,0.20535093,847.55,846.68,0.7954879]
[1756995964468,0.20535093,847.55,846.67,0.7954879]
[1756995964870,0.20535093,847.55,846.42,1.0573071]
[1756995965070,0.20535093,847.55,846.67,0.79200091]
[1756995965468,0.71970732,847.67,846.67,0.79200091]
[1756995965469,0.79072121,847.88,846.67,0.79200091]
[1756995965770,0.20533215,847.67,846.69,0.79200091]
[1756995965971,0.20533215,847.67,846.7,0.79200091]
[1756995966365,0.20533215,847.67,846.69,0.79200091]
[1756995967268,0.20533215,847.67,846.68,0.79200091]
[1756995967472,0.20533215,847.67,846.67,0.79200091]
[1756995967672,0.20533215,847.67,846.68,0.79200091]
[1756995969871,0.20533215,847.67,846.69,0.79200091]
[1756995970276,0.20533215,847.67,846.68,0.79200091]
[1756995972475,0.20533215,847.67,846.71,0.79200091]
[1756995973278,0.20533215,847.67,846.75,0.79200091]
[1756995974576,0.20533215,847.67,846.7,0.79200091]
[1756995976883,0.20533215,847.67,846.71,0.79200091]
[1756995978082,0.20533215,847.67,846.7,0.79200091]
[1756995979181,0.20533215,847.67,846.71,0.79200091]
[1756995982182,0.20533215,847.67,846.72,0.79200091]
[1756995982679,0.20533215,847.67,846.82,0.79200091]
[1756995982882,0.20533215,847.67,846.83,0.79200091]
[1756995983280,0.20533215,847.67,846.82,0.79200091]
[1756995983883,0.20533215,847.67,846.85,0.79200091]
[1756995984281,0.20533215,847.67,846.86,0.79200091]
[1756995986186,0.20533215,847.67,846.87,0.79200091]
[1756995987387,0.20533215,847.67,846.9,0.79200091]
[1756995987587,0.20533215,847.67,846.78,0.79200091]
[1756995987884,0.20533215,847.67,846.79,0.79200091]
[1756995988087,0.20533215,847.67,846.8,0.79200091]
[1756995989189,0.20533215,847.67,846.81,0.79200091]
[1756995989389,0.20533215,847.67,846.77,0.79200091]
[1756995989689,0.20533215,847.67,846.71,0.79200091]
[1756995990290,0.20533215,847.67,846.72,0.79200091]
[1756995990488,0.20533215,847.67,846.73,0.79200091]
[1756995990693,0.99605336,847.67,846.79,0.79200091]
[1756995990991,0.71909479,847.66,846.79,0.79200091]
[1756995991191,0.79072121,847.64,846.76,0.79200091]
[1756995991491,0.71909479,847.63,846.76,0.79200091]
[1756995991688,1.509816,847.63,846.76,0.79200091]
[1756995991890,0.71909479,847.62,846.76,0.79200091]
[1756995992091,0.71909479,847.62,846.77,0.79200091]
[1756995993490,0.71909479,847.63,846.77,0.79200091]
[1756995994395,1.509816,847.63,846.78,0.79200091]
[1756995994591,0.71909479,847.62,846.78,0.79200091]
[1756995995296,0.71909479,847.62,846.62,1.0573071]
[1756995995297,1.509816,847.62,846.79,0.79200091]
[1756995995495,0.71909479,847.61,846.79,0.79200091]
[1756995996295,0.71909479,847.61,846.8,0.79200091]
[1756995996296,1.509816,847.61,846.8,0.79200091]
[1756995996496,0.71909479,847.6,846.8,0.79200091]
[1756995997096,1.509816,847.6,846.8,0.79200091]
[1756995997293,0.71909479,847.59,846.77,0.79200091]
[1756995997497,0.71909479,847.64,846.77,0.79200091]
[1756995998194,1.509816,847.64,846.78,0.79200091]
[1756995998398,0.71909479,847.63,846.78,0.79200091]
[1756995999698,0.79072121,847.61,846.75,0.79200091]
[1756995999895,0.71909479,847.6,846.75,0.79200091]
[1756996000993,1.509816,847.6,846.75,0.79200091]
[1756996001199,0.71909479,847.59,846.76,0.79200091]
[1756996002295,0.79072121,847.58,846.69,0.79200091]
[1756996002599,0.20533215,847.67,846.69,0.79200091]
[1756996002600,0.79072121,847.56,846.69,0.79200091]
[1756996002898,0.71909479,847.55,846.69,0.79200091]
[1756996003094,1.509816,847.55,846.69,0.79200091]
[1756996003399,0.71909479,847.54,846.69,0.79200091]
[1756996004501,0.79072121,847.5,846.72,0.79200091]
[1756996004697,0.71909479,847.49,846.72,0.79200091]
[1756996005900,1.509816,847.49,846.72,0.79200091]
[1756996006100,0.71909479,847.48,846.73,0.79200091]
[1756996006297,0.71909479,847.48,846.72,0.79200091]
[1756996007297,0.71909479,847.49,846.53,0.79200091]